bitfinex/quotes_ETHUSD_20251122
["timestamp","ask_amount","ask_price","bid_price","bid_amount"]
[1763801192708,0.4555,2735.4,2735.3,0.98355716]
[1763801192925,0.915,2735.4,2735.0,0.98355716]
[1763801193241,0.4595,2735.4,2735.0,1.21303797]
[1763801194450,0.4555,2735.1,2735.0,0.98355716]
[1763801194630,0.4595,2735.4,2735.0,0.98355716]
[1763801194846,0.4555,2735.1,2735.0,0.98355716]
[1763801195022,0.4555,2735.1,2734.6,0.98355716]
[1763801195226,0.4555,2734.9,2734.5,0.98455716]
[1763801195435,0.4555,2734.9,2734.6,0.22958081]
[1763801195641,0.4555,2734.9,2734.5,0.98455716]
[1763801195642,0.6473,2734.9,2734.5,0.98455716]
[1763801195846,0.522,2735.5,2734.5,0.98455716]
[1763801196044,0.522,2735.5,2734.6,0.98355716]
[1763801196045,0.4527,2735.4,2734.6,0.98355716]
[1763801196955,0.4527,2735.4,2734.8,0.98355716]
[1763801197461,0.4527,2735.4,2734.7,0.98355716]
[1763801197627,0.002,2735.2,2734.7,0.22958081]
[1763801198131,0.49,2735.1,2734.7,0.22958081]
[1763801199462,0.002,2735.2,2734.7,1.21313797]
[1763801199775,0.492,2735.2,2734.7,1.21313797]
[1763801200236,0.002,2735.2,2735.1,0.98355716]
[1763801200564,0.4961,2735.2,2735.0,0.98355716]
[1763801200860,0.4941,2735.1,2734.9,0.98355716]
[1763801201026,0.4941,2735.1,2734.8,0.21964572]
[1763801201228,0.4941,2735.1,2734.8,1.20320288]
[1763801202823,0.678,2734.9,2734.8,1.20320288]
[1763801203476,0.1839,2734.9,2734.8,1.20320288]
[1763801203851,0.002,2735.2,2734.9,4.265504]
[1763801204049,0.002,2735.2,2735.1,7.92296343]
[1763801204248,0.002,2735.2,2735.1,5.29969664]
[1763801204548,0.002,2735.2,2735.1,8.17716343]
[1763801204772,0.522,2735.5,2735.3,0.405504]
[1763801204989,0.522,2735.5,2735.4,0.532704]
[1763801205154,0.522,2735.5,2735.4,6.10471298]
[1763801205351,0.522,2735.5,2735.4,6.23191298]
[1763801205763,0.522,2735.5,2735.4,2.24471298]
[1763801206175,0.522,2735.5,2735.4,1.43969664]
[1763801206378,0.57350921,2737.6,2735.5,0.90699264]
[1763801206695,0.1839,2737.4,2736.5,0.98406186]
[1763801206980,0.1839,2737.4,2736.6,0.405504]
[1763801206981,0.49,2737.3,2736.6,0.405504]
[1763801207349,0.49,2737.3,2736.6,0.67566884]
[1763801208620,0.002,2737.5,2736.1,2.09532373]
[1763801208621,0.002,2737.5,2737.2,0.1272]
[1763801208881,0.002,2737.5,2737.3,0.98175438]
[1763801209175,0.002,2737.5,2737.4,0.405504]
[1763801209737,0.002,2737.5,2737.2,0.1272]
[1763801209738,0.002,2737.5,2737.3,0.405504]
[1763801210188,0.002,2737.5,2737.2,0.1272]
[1763801210488,0.002,2737.5,2737.4,0.1272]
[1763801210689,0.57325607,2739.0,2737.8,0.405504]
[1763801210900,0.57325607,2739.0,2738.2,1.38464585]
[1763801211255,0.57325607,2739.0,2738.2,0.526704]
[1763801211495,0.57325607,2739.0,2738.3,0.127]
[1763801213310,0.1839,2738.9,2738.2,0.127]
[1763801213490,0.1839,2738.9,2738.1,0.532504]
[1763801214091,0.49,2738.8,2738.0,0.127]
[1763801214453,0.49,2738.8,2737.8,0.405504]
[1763801214596,0.49,2738.8,2737.8,0.526704]
[1763801214957,0.49,2738.8,2737.8,0.527704]
[1763801215591,1.06525607,2739.0,2738.0,0.405504]
[1763801215892,1.06525607,2739.0,2737.9,0.405504]
[1763801216066,1.06525607,2739.0,2738.1,0.405504]
[1763801216573,0.57525607,2739.0,2738.1,0.405504]
[1763801216882,0.57525607,2739.0,2738.9,0.526704]
[1763801217056,0.57525607,2739.0,2738.9,0.1212]
[1763801217260,0.57525607,2739.0,2738.5,0.405504]
[1763801217501,0.57525607,2739.0,2738.4,0.405504]
[1763801219696,0.1839,2738.9,2738.0,0.5357288]
[1763801219931,0.6739,2738.9,2737.5,0.001]
[1763801220235,0.6739,2738.9,2737.5,0.128]
[1763801220395,1.0630713,2738.8,2737.5,0.001]
[1763801220888,0.1839,2737.9,2737.5,0.001]
[1763801221304,0.5730713,2738.8,2737.5,0.001]
[1763801221305,0.49,2738.4,2737.5,0.001]
[1763801222124,0.678,2737.9,2737.5,0.001]
[1763801222536,1.168,2737.9,2737.5,0.001]
[1763801223316,0.1839,2737.9,2737.5,0.001]
[1763801223542,0.49,2738.3,2737.5,0.001]
[1763801224537,0.49,2738.5,2737.5,0.001]
[1763801227141,0.6756,2737.9,2737.5,0.001]
[1763801227836,0.4703,2738.6,2737.6,0.405504]
[1763801228240,0.4703,2738.6,2737.5,0.406504]
[1763801228539,0.4703,2738.6,2737.8,0.406504]
[1763801228946,0.4703,2738.6,2737.8,0.001]
[1763801230546,0.5730713,2738.8,2738.0,0.405504]
[1763801230754,0.5730713,2738.8,2738.1,0.5356288]
[1763801230901,1.0433713,2738.8,2738.1,0.5356288]
[1763801232208,0.002,2739.0,2738.1,0.5356288]
[1763801232209,0.002,2739.0,2738.7,9.337488]
[1763801232517,0.002,2739.0,2738.9,1.43369664]
[1763801232740,0.002,2739.0,2738.9,2.56817889]
[1763801232922,0.002,2739.0,2738.9,1.66118625]
[1763801233123,0.002,2739.0,2738.9,1.53998625]
[1763801233338,0.002,2739.0,2738.9,0.405504]
[1763801234159,0.002,2739.0,2738.9,0.526704]
[1763801234455,0.002,2739.0,2738.9,0.647904]
[1763801235263,0.002,2739.2,2739.0,5.17249664]
[1763801235565,0.002,2739.2,2739.1,11.79820311]
[1763801235725,0.002,2739.2,2739.1,13.53894759]
[1763801236145,0.002,2739.2,2739.1,12.23342512]
[1763801236363,0.002,2739.2,2739.1,9.67894759]
[1763801236563,0.002,2739.2,2739.1,8.12522512]
[1763801236761,0.002,2739.2,2739.1,6.63268064]
[1763801236946,0.002,2739.2,2739.1,7.81750763]
[1763801237266,0.002,2739.2,2739.1,7.81170763]
[1763801237464,0.002,2739.2,2739.1,7.93870763]
[1763801237964,0.002,2739.2,2739.1,7.81750763]
[1763801238165,0.002,2739.2,2739.1,8.79508676]
[1763801238464,0.002,2739.2,2739.1,2.36319899]
[1763801238759,0.002,2739.2,2739.1,0.405504]
[1763801239382,0.002,2739.2,2739.1,1.38558955]
[1763801239936,0.002,2739.2,2739.1,6.74128189]
[1763801240130,0.002,2739.6,2739.2,1.55489664]
[1763801240367,0.002,2739.6,2739.5,5.477488]
[1763801240664,0.002,2739.6,2739.5,7.35116608]
[1763801240828,0.002,2739.6,2739.5,7.27840483]
[1763801241033,0.002,2739.6,2739.5,8.5842689]
[1763801241228,0.002,2739.6,2739.5,7.27840483]
[1763801241432,0.002,2739.6,2739.5,8.58407047]
[1763801241862,0.002,2739.6,2739.5,7.27840483]
[1763801242066,0.002,2739.6,2739.5,10.92870597]
[1763801242263,0.002,2739.6,2739.5,7.27840483]
[1763801242767,0.1846,2741.0,2739.6,1.31249664]
[1763801242768,0.6549,2741.0,2739.6,1.31249664]
[1763801242940,0.6549,2741.0,2740.1,0.405504]
[1763801243131,0.4703,2740.9,2740.3,0.405504]
[1763801243537,0.491,2740.4,2739.8,0.405504]
[1763801243733,0.491,2740.4,2739.9,0.126]
[1763801243973,0.491,2740.4,2739.7,2.07132294]
[1763801243974,0.9613,2740.4,2739.7,2.07132294]
[1763801244171,0.9613,2740.4,2739.6,4.950784]
[1763801244172,0.9613,2740.4,2739.8,1.68076881]
[1763801244337,0.1846,2739.9,2739.6,0.97855812]
[1763801244538,0.1846,2739.9,2739.6,0.405504]
[1763801244933,0.1846,2739.9,2739.4,0.531504]
[1763801245362,0.6549,2739.9,2739.4,0.531504]
[1763801245560,0.6549,2739.9,2739.3,0.97855812]
[1763801245848,0.6549,2739.9,2739.4,0.405504]
[1763801246735,0.1846,2739.9,2739.4,0.405504]
[1763801246983,0.4703,2739.8,2739.4,0.405504]
[1763801247280,0.491,2739.5,2739.1,0.97855812]
[1763801247433,0.491,2739.5,2739.1,0.127]
[1763801247636,0.4703,2739.8,2739.2,0.405504]
[1763801248170,0.1846,2739.9,2739.4,0.405504]
[1763801248333,0.1846,2739.9,2739.2,0.405504]
[1763801248536,0.1846,2739.9,2739.4,0.405504]
[1763801248809,0.6549,2739.9,2739.4,0.405504]
[1763801249133,0.4703,2739.8,2739.4,0.405504]
[1763801249367,0.1846,2739.9,2739.4,0.405504]
[1763801249572,0.4703,2740.2,2739.4,0.526704]
[1763801249771,0.4703,2740.5,2739.6,0.405504]
[1763801249951,0.4703,2740.5,2739.8,0.405504]
[1763801250152,0.002,2739.9,2739.8,0.405504]
[1763801250949,0.002,2739.9,2739.8,0.526704]
[1763801251155,0.002,2739.9,2739.8,0.531504]
[1763801251356,0.6776,2739.9,2739.6,0.405504]
[1763801251677,0.002,2739.9,2739.6,0.531504]
[1763801252653,0.002,2739.9,2739.8,0.1212]
[1763801252890,0.002,2739.9,2739.8,0.652704]
[1763801253193,0.002,2739.9,2739.8,1.03984948]
[1763801253857,0.002,2739.9,2739.8,2.0184076]
[1763801254054,0.002,2739.9,2739.8,4.68975093]
[1763801254287,0.002,2739.9,2739.8,9.45674357]
[1763801255384,0.002,2739.9,2739.8,1.94684212]
[1763801256007,0.002,2739.9,2739.8,1.69964212]
[1763801256193,0.002,2739.9,2739.8,3.12929404]
[1763801256373,0.002,2739.9,2739.8,3.00329404]
[1763801256703,0.002,2739.9,2739.8,1.82564212]
[1763801257105,0.002,2739.9,2739.8,1.70444212]
[1763801257405,0.002,2739.9,2739.8,3.12929404]
[1763801257783,0.002,2739.9,2739.8,3.25049404]
[1763801258002,0.002,2739.9,2739.8,3.28699305]
[1763801258312,0.002,2739.9,2739.8,3.28884082]
[1763801258519,0.002,2739.9,2739.8,3.94045738]
[1763801258823,0.002,2739.9,2739.8,1.82564212]
[1763801259284,0.002,2739.9,2739.8,7.80045738]
[1763801259478,0.002,2739.9,2739.8,9.45674357]
[1763801259701,0.002,2739.9,2739.8,5.80684212]
[1763801259909,0.002,2739.9,2739.8,9.49324258]
[1763801260219,0.002,2739.9,2739.8,9.45674357]
[1763801260582,0.002,2739.9,2739.8,5.80684212]
[1763801260782,0.002,2739.9,2739.8,9.45674357]
[1763801261212,0.002,2739.9,2739.8,12.08001036]
[1763801262111,0.002,2739.9,2739.8,9.45674357]
[1763801262701,0.002,2739.9,2739.8,1.29413812]
[1763801262918,0.002,2739.9,2739.8,4.07615919]
[1763801263213,0.002,2739.9,2739.8,8.42636418]
[1763801263417,0.002,2739.9,2739.8,9.45674357]
[1763801263782,0.002,2739.9,2739.8,5.80684212]
[1763801264226,0.002,2739.9,2739.8,9.45674357]
[1763801264824,0.002,2739.9,2739.8,5.68084212]
[1763801265010,0.002,2739.9,2739.8,5.68564212]
[1763801265185,0.002,2739.9,2739.8,8.30672741]
[1763801265720,0.002,2739.9,2739.8,2.88703077]
[1763801265889,0.002,2739.9,2739.8,2.23199911]
[1763801265890,0.6765,2739.9,2739.8,2.23199911]
[1763801266089,0.6765,2739.9,2739.8,0.26594548]
[1763801266294,1.1675,2739.9,2739.8,1.96628238]
[1763801266691,0.002,2739.9,2739.6,1.03299264]
[1763801266923,0.1983,2739.9,2739.6,0.90699264]
[1763801267216,0.1983,2739.9,2739.6,3.65407793]
[1763801267930,0.1983,2739.9,2739.7,0.405504]
[1763801268138,0.6893,2739.9,2739.8,1.96690071]
[1763801268284,0.6893,2739.9,2739.3,0.5483288]
[1763801268285,0.6893,2739.9,2739.7,1.31138259]
[1763801268628,0.9692,2739.8,2739.7,1.31138259]
[1763801268927,0.9692,2739.8,2739.7,1.71688659]
[1763801269285,0.1983,2739.9,2739.8,0.405504]
[1763801269911,1.1675,2739.9,2739.8,0.405504]
[1763801270634,1.1675,2739.9,2739.7,1.31168687]
[1763801270816,0.9692,2739.8,2739.7,1.31168687]
[1763801271236,0.9692,2739.8,2739.6,1.31168687]
[1763801271433,0.491,2739.7,2739.6,1.71719087]
[1763801271643,0.9692,2739.7,2739.6,1.71719087]
[1763801272206,0.9692,2739.7,2739.6,0.405504]
[1763801274139,0.9692,2739.7,2739.6,1.38903086]
[1763801275334,0.9692,2739.7,2739.5,0.98452686]
[1763801275636,0.9692,2739.6,2739.5,0.001]
[1763801286172,0.4782,2739.6,2739.5,0.001]
[1763801286471,0.1983,2739.9,2739.5,0.001]
[1763801286770,0.002,2739.8,2739.5,0.001]
[1763801286977,0.002,2739.8,2739.6,0.405504]
[1763801287340,0.4949,2739.7,2739.5,0.406504]
[1763801287545,0.4949,2739.7,2739.5,0.68937577]
[1763801287743,0.4949,2739.6,2739.5,0.68937577]
[1763801288042,0.002,2739.8,2739.5,0.68937577]
[1763801288448,0.002,2739.8,2739.5,1.67290263]
[1763801288849,0.002,2739.8,2739.7,0.526704]
[1763801289051,0.002,2739.8,2739.7,1.74596169]
[1763801289286,0.002,2739.8,2739.7,2.3213217]
[1763801289450,0.002,2739.8,2739.7,1.04613517]
[1763801289778,0.002,2739.8,2739.7,3.01303588]
[1763801290153,0.002,2739.8,2739.7,10.47597553]
[1763801290360,0.002,2739.8,2739.7,10.43947519]
[1763801291156,0.002,2739.8,2739.7,14.24147519]
[1763801291380,0.002,2739.8,2739.7,10.38147519]
[1763801291600,0.002,2739.8,2739.7,14.03150986]
[1763801291896,0.002,2739.8,2739.7,17.89150986]
[1763801292062,0.002,2739.8,2739.7,20.51259515]
[1763801292660,0.002,2739.8,2739.7,16.86256048]
[1763801292853,0.002,2739.8,2739.7,17.89150986]
[1763801293252,0.1962,2741.1,2739.8,5.17249664]
[1763801293468,0.1962,2741.1,2740.8,0.405504]
[1763801294001,0.4949,2740.9,2740.7,0.98214783]
[1763801294209,0.4949,2740.8,2740.7,1.38765183]
[1763801294396,0.4949,2740.8,2740.7,0.405504]
[1763801294698,0.9877,2740.8,2740.7,0.405504]
[1763801294897,0.9877,2740.8,2740.6,0.98214783]
[1763801295068,0.9877,2740.7,2740.5,0.98214783]
[1763801295265,0.4949,2740.6,2740.5,0.98214783]
[1763801295587,0.4949,2740.6,2740.2,0.98214783]
[1763801295588,0.9877,2740.6,2740.2,0.98214783]
[1763801295780,0.4949,2740.3,2740.2,0.98214783]
[1763801296199,0.9877,2740.3,2740.2,0.98214783]
[1763801297175,0.9877,2740.3,2740.1,0.98214783]
[1763801297375,0.9877,2740.3,2739.9,0.98214783]
[1763801297376,0.4949,2740.2,2739.9,0.98214783]
[1763801297580,0.4949,2740.2,2740.0,0.98214783]
[1763801298194,0.1962,2741.1,2740.1,0.405504]
[1763801298500,0.4949,2740.2,2740.1,0.405504]
[1763801298685,0.4949,2740.2,2740.1,1.38765183]
[1763801299099,0.4949,2740.2,2740.1,0.405504]
[1763801299268,0.4949,2740.2,2740.0,1.38789324]
[1763801299466,0.4949,2740.1,2740.0,1.38789324]
[1763801299869,0.1962,2741.1,2740.0,1.38789324]
[1763801300121,0.4928,2741.0,2740.0,1.38789324]
[1763801300410,0.4949,2740.1,2740.0,1.38789324]
[1763801302288,0.9877,2740.1,2740.0,1.38789324]
[1763801302685,0.9877,2740.1,2739.9,0.98238924]
[1763801302885,0.6777,2739.9,2739.8,0.98238924]
[1763801303089,0.6777,2739.9,2739.7,0.98238924]
[1763801303292,0.1962,2740.2,2739.8,0.405504]
[1763801303495,0.4928,2740.1,2739.8,1.38789324]
[1763801304101,0.1962,2740.2,2739.8,1.38789324]
[1763801304509,0.689,2740.2,2739.8,1.38789324]
[1763801304931,4.85904772,2741.1,2740.0,0.405504]
[1763801304932,0.4928,2740.8,2740.0,0.405504]
[1763801305193,0.4928,2740.7,2740.0,1.38789324]
[1763801305727,0.4969,2740.1,2740.0,1.38789324]
[1763801306030,0.4969,2740.1,2740.0,0.405504]
[1763801306324,0.9897,2740.1,2740.0,0.405504]
[1763801307928,0.4969,2740.1,2740.0,0.405504]
[1763801308521,0.9897,2740.1,2739.9,0.405504]
[1763801308722,0.4949,2740.0,2739.9,0.405504]
[1763801308892,0.9877,2740.0,2739.9,0.405504]
[1763801309289,0.002,2740.1,2739.9,1.82260856]
[1763801309494,0.002,2740.1,2740.0,2.08343445]
[1763801309928,0.002,2740.1,2740.0,1.96223445]
[1763801310428,0.002,2740.1,2740.0,0.652704]
[1763801311727,0.002,2740.1,2740.0,0.531504]
[1763801311898,0.002,2740.1,2740.0,1.5787355]
[1763801312654,0.002,2740.1,2740.0,2.7637753]
[1763801312839,0.002,2740.1,2740.0,1.4527355]
[1763801313038,0.002,2740.1,2740.0,2.8849753]
[1763801313755,0.002,2740.1,2740.0,2.7637753]
[1763801314263,0.002,2740.1,2740.0,1.7165438]
[1763801315333,0.002,2740.1,2740.0,0.405504]
[1763801315747,0.4779,2740.1,2740.0,0.405504]
[1763801316960,0.002,2740.1,2740.0,0.526704]
[1763801318356,0.002,2740.1,2740.0,2.49099967]
[1763801318523,0.002,2740.1,2740.0,2.78415117]
[1763801319867,0.002,2740.1,2740.0,2.66295117]
[1763801320266,0.4652,2740.1,2740.0,2.66295117]
[1763801321778,0.4652,2740.1,2740.0,2.01228285]
[1763801321779,0.9467,2740.1,2740.0,2.01228285]
[1763801322452,0.4652,2740.1,2740.0,0.6986555]
[1763801322652,0.9467,2740.1,2740.0,0.6986555]
[1763801324393,0.9467,2740.1,2740.0,2.66295117]
[1763801324544,0.9467,2740.1,2740.0,0.6986555]
[1763801325882,0.9467,2740.1,2740.0,2.66295117]
[1763801326079,0.9467,2740.1,2740.0,0.6986555]
[1763801326384,0.9467,2740.1,2739.9,1.96429567]
[1763801326679,0.9447,2740.0,2739.9,2.36979967]
[1763801327086,0.9357438,2740.0,2739.9,2.36979967]
[1763801329792,0.9357438,2740.0,2739.9,1.96429567]
[1763801330115,0.9357438,2740.0,2739.9,1.72056688]
[1763801334500,0.9357438,2740.0,2739.9,2.12022609]
[1763801336219,0.4542438,2740.0,2739.9,2.12022609]
[1763801337002,0.9357438,2740.0,2739.9,2.12022609]
[1763801339326,0.002,2740.1,2739.9,2.25042609]
[1763801339529,0.002,2740.1,2740.0,0.535704]
[1763801339726,0.002,2740.1,2740.0,2.79371533]
[1763801340114,0.002,2740.1,2740.0,0.69921966]
[1763801340314,0.4652,2740.1,2740.0,0.69921966]
[1763801340619,0.002,2740.1,2740.0,0.69921966]
[1763801340927,0.4652,2740.1,2740.0,0.69921966]
[1763801341836,0.4652,2740.1,2740.0,0.29371566]
[1763801342335,0.9467,2740.1,2740.0,0.29371566]
[1763801342859,0.9467,2740.1,2739.9,1.31559268]
[1763801343035,0.9467,2740.0,2739.9,1.31559268]
[1763801343448,0.9467,2740.0,2739.9,1.72109668]
[1763801344111,0.9467,2740.0,2739.9,0.406504]
[1763801344308,0.9467,2740.0,2739.9,1.72120772]
[1763801344869,0.9467,2740.0,2739.9,0.001]
[1763801349869,0.002,2740.0,2739.9,1.39264821]
[1763801350065,0.002,2740.0,2739.9,1.7936834]
[1763801350538,0.002,2740.0,2739.9,0.80753919]
[1763801350736,0.002,2740.0,2739.9,2.12224291]
[1763801350949,0.002,2740.0,2739.9,0.80753919]
[1763801351834,0.002,2740.0,2739.9,0.67733919]
[1763801353884,0.4937,2740.0,2739.9,0.67733919]
[1763801354053,0.4937,2740.0,2739.9,1.99085679]
[1763801354250,0.4937,2740.0,2739.9,0.67733919]
[1763801354472,0.9517,2740.0,2739.9,0.67733919]
[1763801354638,0.9517,2740.0,2739.9,1.31457172]
[1763801354639,0.4937,2740.0,2739.9,1.31457172]
[1763801355746,0.9517,2740.0,2739.9,1.31457172]
[1763801356336,0.9517,2740.0,2739.9,0.001]
[1763801357402,0.9517,2740.0,2739.9,0.98627363]
[1763801357579,0.9517,2740.0,2739.9,0.001]
[1763801360473,1.52444752,2740.0,2739.9,0.001]
[1763801360759,0.9517,2740.0,2739.9,0.001]
[1763801363894,1.59799264,2739.9,2739.6,0.001]
[1763801364102,0.4917,2739.7,2739.6,0.001]
[1763801364502,0.9497,2739.7,2739.6,0.001]
[1763801370786,5.59891161,2739.7,2739.6,0.001]
[1763801371289,0.90699264,2739.6,2739.5,0.001]
[1763801371510,1.85669264,2739.6,2739.5,0.001]
[1763801371710,2.49103409,2739.6,2739.5,0.001]
[1763801376131,6.23325306,2739.6,2739.5,0.001]
[1763801376336,5.59891161,2739.6,2739.5,0.001]
[1763801377011,0.90699264,2739.5,2739.3,0.001]
[1763801377203,0.9516,2739.4,2739.3,0.001]
[1763801379136,0.9516,2739.4,2739.2,0.001]
[1763801379350,5.78667087,2739.3,2739.2,0.001]
[1763801379556,5.78667087,2739.3,2739.0,0.001]
[1763801379557,0.90699264,2739.2,2739.0,0.001]
[1763801379708,0.90699264,2739.2,2738.1,0.1312]
[1763801379709,4.64921161,2739.0,2738.1,0.1312]
[1763801379903,5.76999204,2739.0,2738.1,0.1312]
[1763801380211,6.25159204,2739.0,2738.1,0.1312]
[1763801380519,6.25159204,2739.0,2737.9,0.1312]
[1763801380927,6.25159204,2739.0,2737.8,0.001]
[1763801380928,0.90699264,2738.9,2737.8,0.001]
[1763801381135,0.5851,2738.7,2737.8,0.001]
[1763801381444,0.78246926,2738.7,2737.8,0.001]
[1763801381623,1.83712452,2738.7,2737.8,0.001]
[1763801382150,2.74411716,2738.7,2737.8,0.001]
[1763801382303,4.97638216,2738.7,2737.8,0.001]
[1763801382837,5.56241494,2738.7,2737.8,0.001]
[1763801383042,0.90699264,2737.9,2737.8,0.001]
[1763801383251,2.154313,2737.9,2737.8,0.001]
[1763801383538,2.635913,2737.9,2737.8,0.001]
[1763801388887,7.31098057,2737.9,2737.8,0.001]
[1763801389895,1.492313,2737.9,2737.8,0.001]
[1763801390185,0.90699264,2737.9,2737.8,0.1322]
[1763801390388,0.90699264,2737.9,2737.8,0.001]
[1763801390971,0.90699264,2737.9,2737.8,0.1322]
[1763801391186,4.67506757,2738.3,2737.8,0.1322]
[1763801391395,5.19073433,2738.3,2737.8,0.1322]
[1763801391600,0.90699264,2738.2,2737.8,0.1322]
[1763801391904,0.90699264,2738.2,2737.8,0.001]
[1763801392102,3.65030457,2739.5,2737.8,0.001]
[1763801392103,0.002,2739.6,2738.0,0.405504]
[1763801392305,0.4816,2739.5,2738.2,0.98444102]
[1763801392444,5.15666757,2739.5,2738.1,1.50561818]
[1763801392644,0.4816,2739.4,2738.2,0.405504]
[1763801392878,0.4816,2739.4,2738.1,0.405504]
[1763801393195,4.67506757,2739.1,2738.1,0.405504]
[1763801393484,4.67506757,2739.1,2738.0,0.405504]
[1763801394062,0.90699264,2739.0,2738.0,0.405504]
[1763801395186,0.192,2738.9,2737.9,0.405504]
[1763801395395,0.90699264,2738.6,2737.8,0.001]
[1763801395774,0.4816,2738.5,2737.8,0.001]
[1763801396689,1.38859264,2738.6,2737.8,0.001]
[1763801396862,0.60636602,2738.5,2737.8,0.001]
[1763801397067,1.08796602,2738.5,2737.8,0.001]
[1763801397985,0.60636602,2738.5,2737.8,0.001]
[1763801398901,0.6756,2738.9,2737.8,0.001]
[1763801399101,0.002,2738.9,2737.8,0.001]
[1763801399809,5.35066757,2738.9,2737.8,0.001]
[1763801400103,0.90699264,2738.8,2737.8,0.001]
[1763801400302,2.01435866,2738.8,2737.8,0.001]
[1763801400474,0.4816,2738.7,2737.8,0.001]
[1763801401503,0.90699264,2738.8,2737.8,0.001]
[1763801401802,4.86906757,2738.9,2737.8,0.001]
[1763801401803,0.002,2738.9,2737.8,0.001]
[1763801402006,0.194,2738.9,2737.8,0.001]
[1763801402308,0.6756,2738.9,2737.8,0.001]
[1763801402604,0.90699264,2738.8,2737.8,0.001]
[1763801403011,4.67506757,2738.5,2737.8,0.001]
[1763801403205,0.90699264,2738.4,2737.8,0.001]
[1763801403408,0.662,2737.9,2737.8,0.001]
[1763801403607,4.67506757,2738.1,2737.8,0.001]
[1763801403913,5.15666757,2738.1,2737.8,0.001]
[1763801404104,5.69153433,2738.1,2737.8,0.001]
[1763801404304,0.4816,2738.0,2737.8,0.001]
[1763801405113,0.47,2737.9,2737.8,0.001]
[1763801405509,0.9516,2737.9,2737.8,0.001]
[1763801407839,4.08399864,2737.9,2737.8,0.001]
[1763801408116,4.8870912,2737.9,2737.8,0.001]
[1763801408418,2.8786852,2737.9,2737.8,0.001]
[1763801408713,5.4140972,2737.9,2737.8,0.001]
[1763801409318,7.769839,2737.7,2737.5,0.001]
[1763801409526,2.8786852,2737.9,2737.5,0.001]
[1763801409527,9.80843737,2737.6,2737.5,0.001]
[1763801409681,8.94075421,2737.6,2736.1,0.98444102]
[1763801409886,0.4712,2737.3,2736.1,0.98444102]
[1763801410098,0.4712,2737.3,2736.0,0.98444102]
[1763801410297,0.9411,2737.3,2735.9,0.98444102]
[1763801410593,0.9411,2737.3,2736.0,0.98444102]
[1763801410913,0.9411,2737.3,2735.9,0.98444102]
[1763801411910,6.52316021,2737.3,2735.9,0.98444102]
[1763801412085,0.90699264,2737.2,2735.8,0.98444102]
[1763801412286,4.67506757,2736.7,2735.6,0.98444102]
[1763801412485,0.1891,2736.6,2735.6,0.98444102]
[1763801412681,1.09609264,2736.6,2735.6,0.98444102]
[1763801412882,0.90699264,2736.6,2735.6,0.98444102]
[1763801413088,0.65231602,2737.3,2735.6,0.98444102]
[1763801413089,1.09609264,2737.0,2735.7,1.38994502]
[1763801413317,1.72019866,2737.0,2735.7,1.38994502]
[1763801414618,0.1891,2737.3,2735.9,1.38994502]
[1763801414823,0.4699,2737.4,2736.1,0.405504]
[1763801415195,0.4699,2737.4,2737.1,0.001]
[1763801415395,1.37689264,2737.6,2737.1,0.001]
[1763801415612,1.37819264,2737.2,2737.1,0.001]
[1763801415787,1.98351866,2737.2,2737.1,0.001]
[1763801416321,0.90699264,2737.2,2737.1,0.001]
[1763801416524,0.4699,2737.5,2737.1,0.001]
[1763801416817,0.4699,2737.4,2737.1,0.001]
[1763801417421,0.4712,2737.2,2737.1,0.001]
[1763801417814,1.84809264,2737.2,2737.1,0.001]
[1763801418148,2.50040866,2737.2,2737.1,0.001]
[1763801418854,1.55930866,2737.2,2737.1,0.001]
[1763801419040,0.90699264,2737.2,2737.1,0.001]
[1763801420345,1.84809264,2737.2,2737.1,0.001]
[1763801421740,1.37819264,2737.2,2737.1,0.001]
[1763801421942,0.90699264,2737.2,2737.1,0.001]
[1763801422146,0.90699264,2737.6,2737.1,0.001]
[1763801422448,0.62410602,2737.5,2737.1,0.001]
[1763801422649,1.09400602,2737.5,2737.1,0.001]
[1763801422851,0.90699264,2737.6,2737.1,0.001]
[1763801423556,1.37689264,2737.6,2737.1,0.001]
[1763801423723,0.90699264,2737.6,2737.1,0.001]
[1763801424147,4.67706757,2738.2,2737.1,0.001]
[1763801424333,0.90699264,2738.1,2737.1,0.001]
[1763801424655,1.53158866,2738.1,2737.1,0.001]
[1763801425016,0.5733067,2737.9,2737.1,0.001]
[1763801425226,5.14696757,2738.2,2737.1,0.001]
[1763801425441,0.90699264,2738.1,2737.1,0.001]
[1763801425629,0.90699264,2737.7,2737.1,0.001]
[1763801425828,1.46519866,2737.7,2737.1,0.001]
[1763801426050,0.90699264,2737.7,2737.1,0.001]
[1763801429671,1.37689264,2737.7,2737.1,0.001]
[1763801429846,0.4699,2737.6,2737.1,0.001]
[1763801430046,0.90699264,2737.7,2737.1,0.001]
[1763801430763,1.37689264,2737.7,2737.1,0.001]
[1763801431075,0.60519602,2737.6,2737.1,0.001]
[1763801431574,1.07509602,2737.6,2737.1,0.001]
[1763801431776,0.60519602,2737.6,2737.1,0.001]
[1763801431977,0.4712,2737.2,2737.1,0.001]
[1763801433343,0.90699264,2737.3,2737.1,0.001]
[1763801434041,0.002,2737.2,2737.1,0.001]
[1763801435873,0.4528,2737.2,2737.1,0.001]
[1763801436191,0.002,2737.2,2737.1,0.001]
[1763801439678,0.002,2737.2,2737.1,1.38715234]
[1763801439880,0.002,2737.2,2737.1,1.65742475]
[1763801441777,0.002,2737.2,2737.1,2.02688314]
[1763801441990,0.002,2737.2,2737.1,2.64107208]